[Event "Torneo Nuevo Centro. Jornada 10"]
[Site "Chess.com"]
[Date "2020.08.21"]
[Round "2"]
[White "De Nacimiento Montano, Antonio"]
[Black "Mancebo Ibanez, Fernando"]
[Result "1-0"]
[WhiteElo "1855"]
[BlackElo "2110"]
[TimeControl "180+2"]
[EndTime "10:48:55 PDT"]
[Termination "Victoria de Twitch_adn4815 por abandono"]

1. e4 {[%clk 0:03:01.9]} 1... c6 {[%clk 0:02:56.1]} 2. d4 {[%clk 0:03:02.2]}
2... d5 {[%clk 0:02:57.5]} 3. exd5 {[%clk 0:03:03.4]} 3... cxd5 {[%clk
0:02:58.4]} 4. c4 {[%clk 0:03:04.4]} 4... Nf6 {[%clk 0:02:59]} 5. Nf3 {[%clk
0:03:05.7]} 5... e6 {[%clk 0:03:00.3]} 6. Bd3 {[%clk 0:03:03.8]} 6... Bb4+
{[%clk 0:02:47.6]} 7. Nc3 {[%clk 0:02:48.3]} 7... dxc4 {[%clk 0:02:44.4]} 8.
Bxc4 {[%clk 0:02:48.9]} 8... Bxc3+ {[%clk 0:02:42.5]} 9. bxc3 {[%clk 0:02:49.8]}
9... O-O {[%clk 0:02:35.5]} 10. O-O {[%clk 0:02:48.6]} 10... Qc7 {[%clk
0:02:37]} 11. Qd3 {[%clk 0:02:49.5]} 11... Nbd7 {[%clk 0:02:36.3]} 12. Bb3
{[%clk 0:02:48.6]} 12... b6 {[%clk 0:02:37]} 13. Bg5 {[%clk 0:02:48.3]} 13...
Bb7 {[%clk 0:02:37.5]} 14. Rac1 {[%clk 0:02:39.6]} 14... Be4 {[%clk 0:02:30.2]}
15. Qe3 {[%clk 0:02:33.9]} 15... Qb7 {[%clk 0:02:25.6]} 16. Ne1 {[%clk 0:02:22]}
16... h6 {[%clk 0:02:09.5]} 17. Bh4 {[%clk 0:02:20.3]} 17... Rac8 {[%clk
0:01:46.4]} 18. f3 {[%clk 0:02:09.5]} 18... Bg6 {[%clk 0:01:29.5]} 19. Nd3
{[%clk 0:02:01]} 19... Nd5 {[%clk 0:01:24.7]} 20. Qd2 {[%clk 0:01:57.9]} 20...
b5 {[%clk 0:00:59.6]} 21. Rfe1 {[%clk 0:01:47.6]} 21... Rfe8 {[%clk 0:00:54.7]}
22. Bg3 {[%clk 0:01:37.1]} 22... a5 {[%clk 0:00:53.7]} 23. a4 {[%clk 0:01:33.4]}
23... b4 {[%clk 0:00:42.1]} 24. cxb4 {[%clk 0:00:58.1]} 24... Bxd3 {[%clk
0:00:40.7]} 25. Qxd3 {[%clk 0:00:57.1]} 25... Nxb4 {[%clk 0:00:34.8]} 26. Qe4
{[%clk 0:00:44.1]} 26... Qb6 {[%clk 0:00:26.8]} 27. Rb1 {[%clk 0:00:38.5]} 27...
Nf6 {[%clk 0:00:24.4]} 28. Qh4 {[%clk 0:00:27.1]} 28... Nd7 {[%clk 0:00:08.4]}
29. Red1 {[%clk 0:00:23]} 29... Red8 {[%clk 0:00:08.4]} 30. Bf2 {[%clk
0:00:19.5]} 30... Qb7 {[%clk 0:00:08.5]} 31. d5 {[%clk 0:00:19.6]} 31... exd5
{[%clk 0:00:08.6]} 32. Bxd5 {[%clk 0:00:20.2]} 32... Nxd5 {[%clk 0:00:09.3]} 33.
Rxb7 {[%clk 0:00:20.9]} 33... N7f6 {[%clk 0:00:09.2]} 34. Bd4 {[%clk 0:00:19.9]}
34... Nc3 {[%clk 0:00:08.3]} 35. Rd3 {[%clk 0:00:18.3]} 35... Ne2+ {[%clk
0:00:08.9]} 36. Kf2 {[%clk 0:00:18.3]} 36... g5 {[%clk 0:00:10.1]} 37. Qxh6
{[%clk 0:00:16.9]} 37... Nxd4 {[%clk 0:00:11]} 38. Qxf6 {[%clk 0:00:17.7]} 38...
Rc2+ {[%clk 0:00:09.2]} 39. Kg3 {[%clk 0:00:16.9]} 39... Ne2+ {[%clk 0:00:10]}
40. Kh3 {[%clk 0:00:17.4]} 40... Rxd3 {[%clk 0:00:10.7]} 41. Qxf7+ {[%clk
0:00:18.3]} 1

[Event "Torneo Nuevo Centro. Jornada 10"]
[Site "Chess.com"]
[Date "2020.08.21"]
[Round "2"]
[White "Perrot, Fabien "]
[Black "Birnoveanu, Petru"]
[Result "0-1"]
[WhiteElo "1125"]
[BlackElo "1715"]
[TimeControl "180+2"]
[EndTime "10:49:25 PDT"]
[Termination "Victoria de piculet por abandono"]

1. d4 {[%clk 0:03:00.4]} 1... Nf6 {[%clk 0:02:59.5]} 2. c4 {[%clk 0:02:54.9]}
2... e6 {[%clk 0:02:57.6]} 3. Nc3 {[%clk 0:02:55]} 3... c5 {[%clk 0:02:57.8]} 4.
Bg5 {[%clk 0:02:54.5]} 4... cxd4 {[%clk 0:02:57.3]} 5. Qxd4 {[%clk 0:02:52.2]}
5... Be7 {[%clk 0:02:57.6]} 6. e3 {[%clk 0:02:48.6]} 6... Nc6 {[%clk 0:02:57.7]}
7. Qd2 {[%clk 0:02:44.4]} 7... Qa5 {[%clk 0:02:55.2]} 8. Nf3 {[%clk 0:02:29]}
8... Ne5 {[%clk 0:02:47.1]} 9. Nxe5 {[%clk 0:02:21.4]} 9... Qxe5 {[%clk
0:02:47.1]} 10. Bxf6 {[%clk 0:02:20.3]} 10... Bxf6 {[%clk 0:02:46.7]} 11. g3
{[%clk 0:02:10.1]} 11... Qa5 {[%clk 0:02:42.3]} 12. Bg2 {[%clk 0:02:00.8]} 12...
O-O {[%clk 0:02:42.1]} 13. O-O {[%clk 0:02:01.2]} 13... Rb8 {[%clk 0:02:38.3]}
14. Rfc1 {[%clk 0:01:57.7]} 14... b6 {[%clk 0:02:38.6]} 15. b3 {[%clk
0:01:42.9]} 15... Bb7 {[%clk 0:02:34.5]} 16. Rab1 {[%clk 0:01:33.7]} 16... Bxg2
{[%clk 0:02:33.7]} 17. Kxg2 {[%clk 0:01:33.6]} 17... h5 {[%clk 0:02:34.4]} 18.
Rb2 {[%clk 0:01:28.1]} 18... h4 {[%clk 0:02:30.6]} 19. b4 {[%clk 0:01:26.5]}
19... Qh5 {[%clk 0:02:24]} 20. Qe2 {[%clk 0:01:11]} 20... h3+ {[%clk 0:02:03.1]}
21. Kf1 {[%clk 0:01:07.9]} 21... Qf5 {[%clk 0:01:52.6]} 22. f3 {[%clk
0:00:50.9]} 22... d5 {[%clk 0:01:52.5]} 23. g4 {[%clk 0:00:46.2]} 23... Qh7
{[%clk 0:01:32.5]} 24. cxd5 {[%clk 0:00:40.5]} 24... Bxc3 {[%clk 0:01:32.7]} 25.
Rxc3 {[%clk 0:00:33.6]} 25... exd5 {[%clk 0:01:33.5]} 26. Rd2 {[%clk 0:00:24.7]}
26... Rbc8 {[%clk 0:01:26.6]} 27. Rxc8 {[%clk 0:00:18.8]} 27... Rxc8 {[%clk
0:01:26.3]} 28. Rxd5 {[%clk 0:00:20.2]} 28... Qb1+ {[%clk 0:01:07.1]} 29. Kf2
{[%clk 0:00:14.1]} 29... Qxb4 {[%clk 0:00:59.4]} 30. Qd3 {[%clk 0:00:07]} 30...
Qb2+ {[%clk 0:00:41.7]} 31. Kg3 {[%clk 0:00:07.8]} 31... Qg2+ {[%clk 0:00:36.5]}
32. Kf4 {[%clk 0:00:07.5]} 32... Qxh2+ {[%clk 0:00:30.7]} 33. Ke4 {[%clk
0:00:05]} 33... Qxa2 {[%clk 0:00:20.4]} 34. Rd8+ {[%clk 0:00:04.9]} 34... Rxd8
{[%clk 0:00:20.4]} 35. Qxd8+ {[%clk 0:00:06.3]} 35... Kh7 {[%clk 0:00:21]} 36.
Qe7 {[%clk 0:00:04.3]} 36... Qe6+ {[%clk 0:00:19.7]} 37. Qxe6 {[%clk 0:00:04.3]}
37... fxe6 {[%clk 0:00:20.7]} 38. Ke5 {[%clk 0:00:03.4]} 38... h2 {[%clk
0:00:21.5]} 39. Kxe6 {[%clk 0:00:05.3]} 39... h1=Q {[%clk 0:00:21.1]} 40. e4
{[%clk 0:00:06.2]} 40... Qxf3 {[%clk 0:00:21.4]} 41. e5 {[%clk 0:00:07]} 41...
Qxg4+ {[%clk 0:00:22.2]} 42. Kd5 {[%clk 0:00:08.3]} 42... Qg5 {[%clk 0:00:21.5]}
43. Kd6 {[%clk 0:00:08.8]} 43... Qxe5+ {[%clk 0:00:22]} 44. Kxe5 {[%clk
0:00:09.2]} 44... a5 {[%clk 0:00:22.5]} 45. Kd4 {[%clk 0:00:10.1]} 45... g5
{[%clk 0:00:23.5]} 46. Ke3 {[%clk 0:00:09.2]} 46... a4 {[%clk 0:00:23.9]} 0

[Event "Torneo Nuevo Centro. Jornada 10"]
[Site "Chess.com"]
[Date "2020.08.21"]
[Round "2"]
[White "Gómez Alonso, Óscar"]
[Black "Gil López, Alejandro"]
[Result "0-1"]
[WhiteElo "1849"]
[BlackElo "2213"]
[TimeControl "180+2"]
[EndTime "10:49:27 PDT"]
[Termination "Victoria de AglVal0313 por abandono"]

1. d4 {[%clk 0:03:00]} 1... e5 {[%clk 0:03:00]} 2. dxe5 {[%clk 0:03:00.5]} 2...
d6 {[%clk 0:03:00.8]} 3. Nf3 {[%clk 0:02:59.5]} 3... Nc6 {[%clk 0:03:01.4]} 4.
a3 {[%clk 0:02:57.6]} 4... Bg4 {[%clk 0:03:00]} 5. Nbd2 {[%clk 0:02:27.4]} 5...
dxe5 {[%clk 0:02:58.4]} 6. h3 {[%clk 0:02:27.9]} 6... Bh5 {[%clk 0:02:50.6]} 7.
e4 {[%clk 0:02:27.9]} 7... Nf6 {[%clk 0:02:47.8]} 8. Be2 {[%clk 0:02:28]} 8...
Bc5 {[%clk 0:02:46.1]} 9. O-O {[%clk 0:02:28.3]} 9... Qe7 {[%clk 0:02:43.6]} 10.
b4 {[%clk 0:02:28.8]} 10... Bd4 {[%clk 0:02:43.2]} 11. Nxd4 {[%clk 0:02:29.4]}
11... Nxd4 {[%clk 0:02:31.8]} 12. Bxh5 {[%clk 0:02:27.4]} 12... Nxh5 {[%clk
0:02:32.2]} 13. Qxh5 {[%clk 0:02:27.3]} 13... Nxc2 {[%clk 0:02:33.6]} 14. Ra2
{[%clk 0:02:14.1]} 14... Nd4 {[%clk 0:02:20.3]} 15. Nf3 {[%clk 0:01:57.2]} 15...
O-O-O {[%clk 0:02:10.4]} 16. Nxd4 {[%clk 0:01:43.9]} 16... exd4 {[%clk
0:02:06.9]} 17. Qg4+ {[%clk 0:01:44.5]} 17... Kb8 {[%clk 0:02:06.9]} 18. Bf4
{[%clk 0:01:39.5]} 18... f6 {[%clk 0:02:02.7]} 19. Rd2 {[%clk 0:01:34.1]} 19...
g5 {[%clk 0:01:59.3]} 20. Bg3 {[%clk 0:01:34.1]} 20... h5 {[%clk 0:01:59.5]} 21.
Qf5 {[%clk 0:01:34.3]} 21... h4 {[%clk 0:01:47.9]} 22. Bh2 {[%clk 0:01:35]}
22... Rd7 {[%clk 0:01:44.6]} 23. Rc1 {[%clk 0:01:34.3]} 23... Re8 {[%clk
0:01:41.7]} 24. f3 {[%clk 0:01:24.3]} 24... Rc8 {[%clk 0:01:41.4]} 25. Rcd1
{[%clk 0:01:22.6]} 25... Rcd8 {[%clk 0:01:39.5]} 26. Kh1 {[%clk 0:01:22]} 26...
a6 {[%clk 0:01:36.1]} 27. Bg1 {[%clk 0:01:16.5]} 27... Qe5 {[%clk 0:01:34]} 28.
Qxe5 {[%clk 0:01:07.9]} 28... fxe5 {[%clk 0:01:35.9]} 29. Bh2 {[%clk 0:01:08.7]}
29... Re7 {[%clk 0:01:34.8]} 30. g3 {[%clk 0:01:09.3]} 30... hxg3 {[%clk
0:01:27.5]} 31. Bxg3 {[%clk 0:01:10.3]} 31... Rh8 {[%clk 0:01:26.7]} 32. Kg2
{[%clk 0:01:10.9]} 32... b6 {[%clk 0:01:25.6]} 33. Rh1 {[%clk 0:01:06.7]} 33...
Kb7 {[%clk 0:01:25.6]} 34. h4 {[%clk 0:01:06.2]} 34... gxh4 {[%clk 0:01:25.2]}
35. Rxh4 {[%clk 0:01:06.9]} 35... Rg8 {[%clk 0:01:22.5]} 36. Rg4 {[%clk
0:00:59.5]} 36... Rxg4 {[%clk 0:01:21.9]} 37. fxg4 {[%clk 0:01:00.6]} 37... c5
{[%clk 0:01:23.8]} 38. bxc5 {[%clk 0:00:56.5]} 38... bxc5 {[%clk 0:01:25.7]} 39.
Rf2 {[%clk 0:00:53.5]} 39... c4 {[%clk 0:01:24.6]} 40. Rf5 {[%clk 0:00:54.2]}
40... d3 {[%clk 0:01:22.5]} 41. Kf2 {[%clk 0:00:54.7]} 41... c3 {[%clk
0:01:21.4]} 42. Ke3 {[%clk 0:00:52.5]} 42... d2 {[%clk 0:01:19.6]} 43. Rf1
{[%clk 0:00:45]} 43... Rd7 {[%clk 0:01:17.2]} 44. Bxe5 {[%clk 0:00:38]} 44... c2
{[%clk 0:01:15]} 45. g5 {[%clk 0:00:10.6]} 45... d1=Q {[%clk 0:01:14.3]} 46.
Rxd1 {[%clk 0:00:04.3]} 46... cxd1=Q {[%clk 0:01:16.2]} 47. g6 {[%clk
0:00:05.3]} 47... Qd2+ {[%clk 0:01:14.7]} 48. Kf3 {[%clk 0:00:06]} 48... Qd3+
{[%clk 0:01:12.7]} 49. Kf4 {[%clk 0:00:07]} 49... Qxa3 {[%clk 0:01:13.1]} 50. g7
{[%clk 0:00:07.8]} 50... Qc1+ {[%clk 0:01:12.3]} 51. Kf5 {[%clk 0:00:08.8]}
51... Qf1+ {[%clk 0:01:12.2]} 52. Ke6 {[%clk 0:00:09.9]} 52... Qh3+ {[%clk
0:01:11.5]} 53. Kf6 {[%clk 0:00:09.8]} 53... Qh6+ {[%clk 0:01:11.4]} 54. Kf5
{[%clk 0:00:10.8]} 54... Rf7+ {[%clk 0:01:10.9]} 55. Kg4 {[%clk 0:00:11.2]}
55... Qg6+ {[%clk 0:01:11.6]} 56. Kh4 {[%clk 0:00:11.6]} 0

[Event "Torneo Nuevo Centro. Jornada 10"]
[Site "Chess.com"]
[Date "2020.08.21"]
[Round "2"]
[White "Rodriguez Rodriguez, Joan David "]
[Black "Ainsa Jimenez, Lucas"]
[Result "1-0"]
[WhiteElo "1724"]
[BlackElo "1148"]
[TimeControl "180+2"]
[EndTime "10:49:41 PDT"]
[Termination "Victoria de Not_Jr_chess por tiempo"]

1. d4 {[%clk 0:03:01.9]} 1... d5 {[%clk 0:03:00]} 2. c4 {[%clk 0:03:02.6]} 2...
dxc4 {[%clk 0:02:57.4]} 3. e3 {[%clk 0:03:00.3]} 3... Nf6 {[%clk 0:02:53.9]} 4.
Bxc4 {[%clk 0:03:00.4]} 4... Bf5 {[%clk 0:02:50.6]} 5. Nf3 {[%clk 0:03:00.2]}
5... h6 {[%clk 0:02:47]} 6. Ne5 {[%clk 0:02:57.5]} 6... e6 {[%clk 0:02:42.5]} 7.
Nc3 {[%clk 0:02:56.1]} 7... Bd6 {[%clk 0:02:37.8]} 8. Nf3 {[%clk 0:02:37.2]}
8... Nc6 {[%clk 0:02:34.5]} 9. O-O {[%clk 0:02:36.7]} 9... O-O {[%clk
0:02:33.1]} 10. Re1 {[%clk 0:02:31.7]} 10... Ne4 {[%clk 0:02:27.3]} 11. Bd3
{[%clk 0:02:29]} 11... Nxc3 {[%clk 0:02:09.9]} 12. bxc3 {[%clk 0:02:30.9]} 12...
Bxd3 {[%clk 0:02:02.1]} 13. Qxd3 {[%clk 0:02:32.8]} 13... Qf6 {[%clk 0:01:58.8]}
14. e4 {[%clk 0:02:32.1]} 14... Qg6 {[%clk 0:01:45.3]} 15. Be3 {[%clk
0:01:54.2]} 15... Rfe8 {[%clk 0:01:20.3]} 16. Qb5 {[%clk 0:01:47.8]} 16... Rab8
{[%clk 0:00:47.7]} 17. e5 {[%clk 0:01:46]} 17... a6 {[%clk 0:00:38]} 18. Qb3
{[%clk 0:01:40.9]} 18... Be7 {[%clk 0:00:36.2]} 19. a4 {[%clk 0:01:36.4]} 19...
Na5 {[%clk 0:00:35.8]} 20. Qa2 {[%clk 0:01:15.1]} 20... Rbc8 {[%clk 0:00:28.4]}
21. Rab1 {[%clk 0:01:09.1]} 21... b6 {[%clk 0:00:26.8]} 22. Qe2 {[%clk
0:00:55.7]} 22... Ra8 {[%clk 0:00:20.5]} 23. Bd2 {[%clk 0:00:48.6]} 23... Red8
{[%clk 0:00:16.8]} 24. c4 {[%clk 0:00:48.2]} 24... Nb7 {[%clk 0:00:11.9]} 25. a5
{[%clk 0:00:35.3]} 25... Ra7 {[%clk 0:00:10.9]} 26. axb6 {[%clk 0:00:35.6]}
26... cxb6 {[%clk 0:00:10.2]} 27. Rxb6 {[%clk 0:00:37.5]} 27... Rb8 {[%clk
0:00:09.9]} 28. Reb1 {[%clk 0:00:38.1]} 28... Bd8 {[%clk 0:00:07.5]} 29. R6b3
{[%clk 0:00:30.9]} 29... a5 {[%clk 0:00:06.6]} 30. c5 {[%clk 0:00:32.1]} 30...
a4 {[%clk 0:00:07.1]} 31. Rb5 {[%clk 0:00:31]} 31... a3 {[%clk 0:00:07.3]} 32.
Ra1 {[%clk 0:00:16.9]} 32... a2 {[%clk 0:00:07.2]} 33. c6 {[%clk 0:00:18.2]}
33... Qb1+ {[%clk 0:00:06.2]} 34. Rbxb1 {[%clk 0:00:16.3]} 34... axb1=Q+ {[%clk
0:00:05.1]} 35. Rxb1 {[%clk 0:00:18.2]} 35... Bc7 {[%clk 0:00:05.5]} 36. cxb7
{[%clk 0:00:18.8]} 36... Rbxb7 {[%clk 0:00:05.6]} 37. Rxb7 {[%clk 0:00:19.8]}
37... Rxb7 {[%clk 0:00:05.9]} 38. g3 {[%clk 0:00:20.9]} 38... Rb1+ {[%clk
0:00:05.8]} 39. Kg2 {[%clk 0:00:21.9]} 39... Rb2 {[%clk 0:00:06.5]} 40. Qa6
{[%clk 0:00:20.8]} 40... Rxd2 {[%clk 0:00:04.5]} 41. Nxd2 {[%clk 0:00:22.7]}
41... Kh7 {[%clk 0:00:03.9]} 42. Qb7 {[%clk 0:00:23]} 42... Ba5 {[%clk 0:00:03]}
43. Qxf7 {[%clk 0:00:23.9]} 43... Bxd2 {[%clk 0:00:03.2]} 44. Qxe6 {[%clk
0:00:25.5]} 44... Bc3 {[%clk 0:00:03.4]} 45. d5 {[%clk 0:00:26]} 45... Bd4
{[%clk 0:00:02.1]} 46. d6 {[%clk 0:00:15.4]} 46... Bc5 {[%clk 0:00:02.3]} 47.
Qf5+ {[%clk 0:00:14.9]} 47... Kg8 {[%clk 0:00:02.3]} 48. e6 {[%clk 0:00:16]} 1

[Event "Torneo Nuevo Centro. Jornada 10"]
[Site "Chess.com"]
[Date "2020.08.21"]
[Round "2"]
[White "Ortiz Benavent, Alba"]
[Black "Bercaru, Vlad Ionut"]
[Result "0-1"]
[WhiteElo "1207"]
[BlackElo "1761"]
[TimeControl "180+2"]
[EndTime "10:49:43 PDT"]
[Termination "Victoria de Rata29 por jaque mate"]

1. d4 {[%clk 0:02:54.3]} 1... Nf6 {[%clk 0:02:59.3]} 2. Nf3 {[%clk 0:02:54.3]}
2... g6 {[%clk 0:02:59.8]} 3. Bf4 {[%clk 0:02:53.3]} 3... Bg7 {[%clk 0:03:00.2]}
4. e3 {[%clk 0:02:51.6]} 4... O-O {[%clk 0:03:00.8]} 5. Be2 {[%clk 0:02:51.5]}
5... d6 {[%clk 0:03:02.1]} 6. c3 {[%clk 0:02:52.2]} 6... Nbd7 {[%clk 0:03:03.3]}
7. Nbd2 {[%clk 0:02:52.3]} 7... b6 {[%clk 0:03:03.8]} 8. O-O {[%clk 0:02:51.4]}
8... Bb7 {[%clk 0:03:05.2]} 9. h3 {[%clk 0:02:50.2]} 9... Ne4 {[%clk 0:03:05.4]}
10. Nxe4 {[%clk 0:02:48.7]} 10... Bxe4 {[%clk 0:03:07.3]} 11. Bd3 {[%clk
0:02:07.4]} 11... Bxd3 {[%clk 0:03:01.7]} 12. Qxd3 {[%clk 0:01:07.5]} 12... c5
{[%clk 0:02:58.9]} 13. Qc2 {[%clk 0:01:01.8]} 13... Rc8 {[%clk 0:02:53.7]} 14.
Rac1 {[%clk 0:01:00.4]} 14... cxd4 {[%clk 0:02:52.3]} 15. exd4 {[%clk
0:00:59.4]} 15... Nf6 {[%clk 0:02:46.6]} 16. Bg3 {[%clk 0:00:53.3]} 16... Nh5
{[%clk 0:02:42]} 17. Bh2 {[%clk 0:00:53]} 17... b5 {[%clk 0:02:36.4]} 18. Qb3
{[%clk 0:00:49.1]} 18... a6 {[%clk 0:02:15.9]} 19. Rfe1 {[%clk 0:00:48.6]} 19...
Nf6 {[%clk 0:02:07.4]} 20. Re2 {[%clk 0:00:40.8]} 20... Qd7 {[%clk 0:01:58.1]}
21. Rce1 {[%clk 0:00:38.5]} 21... Rfe8 {[%clk 0:01:56.8]} 22. Qc2 {[%clk
0:00:32.7]} 22... b4 {[%clk 0:01:46.4]} 23. c4 {[%clk 0:00:29]} 23... Nd5 {[%clk
0:01:31.5]} 24. b3 {[%clk 0:00:27.5]} 24... Nc3 {[%clk 0:01:28.3]} 25. Re3
{[%clk 0:00:26]} 25... a5 {[%clk 0:01:18.2]} 26. Rxc3 {[%clk 0:00:20.7]} 26...
bxc3 {[%clk 0:01:17.5]} 27. Qxc3 {[%clk 0:00:21.8]} 27... Qc7 {[%clk 0:01:05.8]}
28. Qe3 {[%clk 0:00:21.2]} 28... Qd8 {[%clk 0:01:02.2]} 29. d5 {[%clk
0:00:21.8]} 29... Qd7 {[%clk 0:00:58.3]} 30. Nd2 {[%clk 0:00:21.9]} 30... e6
{[%clk 0:00:54.1]} 31. dxe6 {[%clk 0:00:22.2]} 31... Rxe6 {[%clk 0:00:54]} 32.
Qxe6 {[%clk 0:00:15.4]} 32... fxe6 {[%clk 0:00:52.8]} 33. Nf3 {[%clk 0:00:16]}
33... Be5 {[%clk 0:00:50.1]} 34. Bxe5 {[%clk 0:00:15.9]} 34... dxe5 {[%clk
0:00:52]} 35. Nxe5 {[%clk 0:00:16.3]} 35... Qd4 {[%clk 0:00:47.8]} 36. Nf3
{[%clk 0:00:14.8]} 36... Qc3 {[%clk 0:00:46.6]} 37. Rxe6 {[%clk 0:00:14.3]}
37... Qb2 {[%clk 0:00:41.4]} 38. Ng5 {[%clk 0:00:12.8]} 38... Qc1+ {[%clk
0:00:39.1]} 39. Kh2 {[%clk 0:00:13.2]} 39... Qxg5 {[%clk 0:00:40.2]} 40. Re1
{[%clk 0:00:12.9]} 40... Rf8 {[%clk 0:00:38.6]} 41. Re3 {[%clk 0:00:12.3]} 41...
Rxf2 {[%clk 0:00:36.4]} 42. Rg3 {[%clk 0:00:12.1]} 42... Qf4 {[%clk 0:00:32.6]}
43. a3 {[%clk 0:00:12]} 43... Rf1 {[%clk 0:00:33.1]} 44. h4 {[%clk 0:00:09.1]}
44... Rh1+ {[%clk 0:00:33.4]} 45. Kxh1 {[%clk 0:00:10.1]} 45... Qxg3 {[%clk
0:00:34.8]} 46. Kg1 {[%clk 0:00:11.1]} 46... Qxb3 {[%clk 0:00:36]} 47. Kh2
{[%clk 0:00:11.9]} 47... Qxa3 {[%clk 0:00:36.8]} 48. c5 {[%clk 0:00:12.2]} 48...
Qxc5 {[%clk 0:00:38.2]} 49. g3 {[%clk 0:00:12.7]} 49... a4 {[%clk 0:00:40.1]}
50. Kh3 {[%clk 0:00:13.7]} 50... a3 {[%clk 0:00:42]} 51. g4 {[%clk 0:00:13.7]}
51... a2 {[%clk 0:00:43.9]} 52. h5 {[%clk 0:00:14.8]} 52... a1=Q {[%clk
0:00:43.8]} 53. hxg6 {[%clk 0:00:15.1]} 53... Qac3+ {[%clk 0:00:45.7]} 54. Kh4
{[%clk 0:00:15]} 54... Qe1+ {[%clk 0:00:44.3]} 55. Kh3 {[%clk 0:00:14.6]} 55...
Qce3+ {[%clk 0:00:44.5]} 56. Kg2 {[%clk 0:00:14.7]} 56... Q1f2+ {[%clk
0:00:46.4]} 57. Kh1 {[%clk 0:00:14.9]} 57... Qee1# {[%clk 0:00:48.3]} 0

[Event "Torneo Nuevo Centro. Jornada 10"]
[Site "Chess.com"]
[Date "2020.08.21"]
[Round "2"]
[White "Beneyto de Ramon, Guillermo"]
[Black "Hernández Tomás, Efrén"]
[Result "0-1"]
[WhiteElo "1650"]
[BlackElo "1100"]
[TimeControl "180+2"]
[EndTime "10:49:48 PDT"]
[Termination "Victoria de EfrenHT10 por jaque mate"]

1. c4 {[%clk 0:03:01.5]} 1... e5 {[%clk 0:03:01]} 2. Nc3 {[%clk 0:03:01.6]} 2...
Nf6 {[%clk 0:03:01.2]} 3. g3 {[%clk 0:03:02.4]} 3... Nc6 {[%clk 0:03:01.4]} 4.
Bg2 {[%clk 0:03:02.5]} 4... Bc5 {[%clk 0:02:58.9]} 5. Nf3 {[%clk 0:03:02.2]}
5... d6 {[%clk 0:02:54.2]} 6. O-O {[%clk 0:03:00.5]} 6... Bg4 {[%clk 0:02:52.9]}
7. d3 {[%clk 0:03:00.5]} 7... Qd7 {[%clk 0:02:50.8]} 8. Bg5 {[%clk 0:02:59.3]}
8... Qe6 {[%clk 0:02:35.8]} 9. Bxf6 {[%clk 0:02:53.5]} 9... Qxf6 {[%clk
0:02:34]} 10. Nd5 {[%clk 0:02:53.3]} 10... Qd8 {[%clk 0:02:29.7]} 11. Rb1 {[%clk
0:02:47.9]} 11... Qd7 {[%clk 0:02:23]} 12. a4 {[%clk 0:02:44.1]} 12... a6 {[%clk
0:02:20.6]} 13. b4 {[%clk 0:02:42.4]} 13... Bxf3 {[%clk 0:02:07.8]} 14. Bxf3
{[%clk 0:02:36.2]} 14... Ba7 {[%clk 0:02:01.8]} 15. b5 {[%clk 0:02:31.5]} 15...
axb5 {[%clk 0:02:00.7]} 16. axb5 {[%clk 0:02:32.6]} 16... Nd4 {[%clk 0:02:00]}
17. e3 {[%clk 0:02:28]} 17... Nxf3+ {[%clk 0:01:57.2]} 18. Qxf3 {[%clk
0:02:29.8]} 18... O-O {[%clk 0:01:55.8]} 19. Qh5 {[%clk 0:02:24.4]} 19... h6
{[%clk 0:01:48.3]} 20. Qxh6 {[%clk 0:02:14.8]} 20... gxh6 {[%clk 0:01:47.8]} 21.
Nf6+ {[%clk 0:02:15.6]} 21... Kg7 {[%clk 0:01:41.1]} 22. Nxd7 {[%clk 0:02:12.8]}
22... Rfd8 {[%clk 0:01:40.5]} 23. b6 {[%clk 0:02:11.3]} 23... Rxd7 {[%clk
0:01:35.1]} 24. bxa7 {[%clk 0:02:11.4]} 24... Rxa7 {[%clk 0:01:35.8]} 25. Ra1
{[%clk 0:02:08.8]} 25... Rxa1 {[%clk 0:01:34]} 26. Rxa1 {[%clk 0:02:10.7]} 26...
b6 {[%clk 0:01:34.7]} 27. Kg2 {[%clk 0:02:07.7]} 27... Kg6 {[%clk 0:01:33.2]}
28. Kf3 {[%clk 0:02:06.3]} 28... f5 {[%clk 0:01:25.1]} 29. h3 {[%clk 0:02:04]}
29... Rf7 {[%clk 0:01:24.4]} 30. Rg1 {[%clk 0:01:52.2]} 30... Kh5 {[%clk
0:01:17.9]} 31. Ke2 {[%clk 0:01:45.1]} 31... Rg7 {[%clk 0:01:13.8]} 32. f3
{[%clk 0:01:41.3]} 32... c5 {[%clk 0:01:04.9]} 33. Kf2 {[%clk 0:01:33.4]} 33...
f4 {[%clk 0:00:58.1]} 34. g4+ {[%clk 0:01:33.1]} 34... Kh4 {[%clk 0:00:54.1]}
35. Rh1 {[%clk 0:01:04.3]} 35... Ra7 {[%clk 0:00:47.4]} 36. exf4 {[%clk
0:00:53.7]} 36... exf4 {[%clk 0:00:43.5]} 37. Re1 {[%clk 0:00:29.9]} 37... Ra2+
{[%clk 0:00:43.1]} 38. Kf1 {[%clk 0:00:25.6]} 38... Kxh3 {[%clk 0:00:41.3]} 39.
Kg1 {[%clk 0:00:13.2]} 39... Kg3 {[%clk 0:00:40.6]} 40. Rf1 {[%clk 0:00:13.7]}
40... Rg2+ {[%clk 0:00:37]} 41. Kh1 {[%clk 0:00:07.1]} 41... Rd2 {[%clk
0:00:36.4]} 42. Rg1+ {[%clk 0:00:04.3]} 42... Kxf3 {[%clk 0:00:35]} 43. g5
{[%clk 0:00:05.2]} 43... hxg5 {[%clk 0:00:34.6]} 44. Rxg5 {[%clk 0:00:06.5]}
44... Rxd3 {[%clk 0:00:31.8]} 45. Rg1 {[%clk 0:00:07.3]} 45... Rd2 {[%clk
0:00:32]} 46. Rf1+ {[%clk 0:00:07.6]} 46... Kg3 {[%clk 0:00:31.9]} 47. Kg1
{[%clk 0:00:08.3]} 47... f3 {[%clk 0:00:30.6]} 48. Kh1 {[%clk 0:00:08.4]} 48...
Rh2+ {[%clk 0:00:21.6]} 49. Kg1 {[%clk 0:00:08.7]} 49... f2+ {[%clk 0:00:22]}
50. Rxf2 {[%clk 0:00:08.4]} 50... Rxf2 {[%clk 0:00:21.3]} 51. Kh1 {[%clk
0:00:10.2]} 51... Rf1# {[%clk 0:00:22.1]} 0